fUST/lending_fUST_20250427
["ID","MTS","AMOUNT","RATE_DAILY","PERIOD"]
[359062747,1745686036118,-912.06474964,0.00017368,2]
[359062748,1745686041112,-87.93525036,0.00017368,2]
[359062749,1745686041135,-260.0,0.00017385,2]
[359062750,1745686041157,-300.0,0.00017468,2]
[359062751,1745686041178,-222.61883175,0.00017469,2]
[359062752,1745686041198,-255.12038607,0.00017469,2]
[359062753,1745686041220,-500.0,0.00017469,2]
[359062754,1745686041240,-500.0,0.00017469,2]
[359062755,1745686041262,-400.0,0.00017469,2]
[359062756,1745686041286,-274.26303769,0.00017469,2]
[359062757,1745686047084,-559.17399601,0.000157,2]
[359062758,1745686047106,-225.73696231,0.00017469,2]
[359062759,1745686047126,-192.42689592,0.00017469,2]
[359062760,1745686048419,1034.79,0.00022,30]
[359062761,1745686051114,-307.57310408,0.00017469,2]
[359062762,1745686051138,-400.0,0.00017469,2]
[359062763,1745686051161,-138.91020903,0.00017469,2]
[359062793,1745686232027,-198.3248875,0.00017152,2]
[359062794,1745686232040,-826.7185841,0.00017309,2]
[359062795,1745686232052,-259.245245,0.00017345,2]
[359062796,1745686232063,-361.08979097,0.00017469,2]
[359062797,1745686232078,-1807.1339537,0.00017582,2]
[359062798,1745686232093,-400.0,0.00017743,2]
[359062799,1745686232106,-400.0,0.00017743,2]
[359062800,1745686232119,-156.03935102,0.00017916,2]
[359062802,1745686232132,-315.11,0.00018017,2]
[359062804,1745686232144,-400.0,0.00018017,2]
[359062807,1745686232156,-160.0,0.00018079,2]
[359062809,1745686232168,-482.16,0.00018291,2]
[359062812,1745686232180,-267.17925969,0.00018558,2]
[359062814,1745686232191,-300.0,0.00018655,2]
[359062817,1745686232203,-500.0,0.00018656,2]
[359062818,1745686232216,-500.0,0.00018656,2]
[359062819,1745686232228,-500.0,0.00018656,2]
[359062820,1745686232241,-500.0,0.00018656,2]
[359062823,1745686232254,-500.0,0.00018656,2]
[359062825,1745686232271,-500.0,0.00018656,2]
[359062828,1745686232283,-500.0,0.00018656,2]
[359062830,1745686232294,-500.0,0.00018656,2]
[359062833,1745686232307,-500.0,0.00018656,2]
[359062835,1745686232320,-405.05897109,0.00018656,2]
[359062837,1745686232332,-500.0,0.00018656,2]
[359062839,1745686232344,-500.0,0.00018656,2]
[359062842,1745686232356,-525.0,0.00018656,2]
[359062844,1745686232369,-500.0,0.00018656,2]
[359062846,1745686232382,-500.0,0.00018656,2]
[359062849,1745686232394,-500.0,0.00018656,2]
[359062851,1745686232406,-500.0,0.00018656,2]
[359062853,1745686232418,-500.0,0.00018656,2]
[359062855,1745686232430,-500.0,0.00018656,2]
[359062856,1745686232440,-389.95382234,0.00018656,2]
[359062857,1745686232450,-540.94712041,0.00018656,2]
[359062858,1745686232460,-500.0,0.00018656,2]
[359062859,1745686232472,-500.0,0.00018656,2]
[359062860,1745686232487,-500.0,0.00018656,2]
[359062861,1745686232499,-500.0,0.00018656,2]
[359062862,1745686232512,-500.0,0.00018656,2]
[359062863,1745686232526,-500.0,0.00018656,2]
[359062864,1745686232540,-500.0,0.00018656,2]
[359062865,1745686232554,-500.0,0.00018656,2]
[359062866,1745686232567,-500.0,0.00018656,2]
[359062867,1745686232581,-500.0,0.00018656,2]
[359062868,1745686232593,-500.0,0.00018656,2]
[359062869,1745686232604,-500.0,0.00018656,2]
[359062870,1745686232617,-389.61779084,0.00018656,2]
[359062871,1745686232629,-460.45332089,0.00018656,2]
[359062872,1745686232642,-1397.70758363,0.00018656,2]
[359062873,1745686232655,-1397.70758363,0.00018656,2]
[359062874,1745686232667,-1397.70758363,0.00018656,2]
[359062875,1745686232680,-1397.70758363,0.00018656,2]
[359062876,1745686232692,-1397.70758363,0.00018656,2]
[359062877,1745686232702,-1397.70758363,0.00018656,2]
[359062878,1745686232713,-1397.70758363,0.00018656,2]
[359062879,1745686232723,-1397.70758363,0.00018656,2]
[359062880,1745686232734,-1397.70758363,0.00018656,2]
[359062881,1745686232745,-1397.70758363,0.00018656,2]
[359062882,1745686232755,-1397.70758363,0.00018656,2]
[359062883,1745686232766,-1397.70758363,0.00018656,2]
[359062884,1745686232778,-1397.70758363,0.00018656,2]
[359062885,1745686232790,-1397.70758363,0.00018656,2]
[359062886,1745686232803,-1397.70758363,0.00018656,2]
[359062887,1745686232815,-1397.70758363,0.00018656,2]
[359062888,1745686232827,-1397.70758363,0.00018656,2]
[359062889,1745686232838,-1397.70758363,0.00018656,2]
[359062890,1745686232850,-1397.70758363,0.00018656,2]
[359062891,1745686232864,-1397.70758363,0.00018656,2]
[359062892,1745686232875,-1397.70758363,0.00018656,2]
[359062893,1745686232888,-1397.70758363,0.00018656,2]
[359062894,1745686232901,-1397.70758363,0.00018656,2]
[359062895,1745686232913,-1397.70758363,0.00018656,2]
[359062896,1745686232924,-1397.70758363,0.00018656,2]
[359062897,1745686232936,-1397.70758363,0.00018656,2]
[359062898,1745686232948,-1397.70758363,0.00018656,2]
[359062899,1745686232961,-1397.70758363,0.00018656,2]
[359062900,1745686232971,-1397.70758363,0.00018656,2]
[359062901,1745686232982,-1397.70758363,0.00018656,2]
[359062902,1745686232992,-1397.70758363,0.00018656,2]
[359062903,1745686233003,-1397.70758363,0.00018656,2]
[359062904,1745686233015,-1397.70758363,0.00018656,2]
[359062905,1745686233028,-1397.70758363,0.00018656,2]
[359062906,1745686233039,-1397.70758363,0.00018656,2]
[359062907,1745686233051,-1397.70758363,0.00018656,2]
[359062908,1745686233062,-1397.70758363,0.00018656,2]
[359062909,1745686233074,-1397.70758363,0.00018656,2]
[359062910,1745686233089,-1397.70758363,0.00018656,2]
[359062911,1745686233102,-1397.70758363,0.00018656,2]
[359062912,1745686233114,-1397.70758363,0.00018656,2]
[359062913,1745686233126,-1397.70758363,0.00018656,2]
[359062914,1745686233138,-1397.70758363,0.00018656,2]
[359062915,1745686233149,-1397.70758363,0.00018656,2]
[359062916,1745686233161,-1364.16260163,0.00018656,2]
[359062917,1745686233173,-1364.16260163,0.00018656,2]
[359062918,1745686233184,-1364.16260163,0.00018656,2]
[359062919,1745686233196,-1364.16260163,0.00018656,2]
[359062920,1745686233207,-1364.16260163,0.00018656,2]
[359062921,1745686233219,-1364.16260163,0.00018656,2]
[359062922,1745686233231,-1364.16260163,0.00018656,2]
[359062923,1745686233243,-1364.16260163,0.00018656,2]
[359062924,1745686233255,-1364.16260163,0.00018656,2]
[359062925,1745686233266,-1364.16260163,0.00018656,2]
[359062926,1745686233277,-1364.16260163,0.00018656,2]
[359062927,1745686233289,-1364.16260163,0.00018656,2]
[359062928,1745686233300,-1364.16260163,0.00018656,2]
[359062929,1745686233312,-1364.16260163,0.00018656,2]
[359062930,1745686233324,-1364.16260163,0.00018656,2]
[359062931,1745686233334,-1364.16260163,0.00018656,2]
[359062932,1745686233346,-1364.16260163,0.00018656,2]
[359062933,1745686233357,-1364.16260163,0.00018656,2]
[359062934,1745686233369,-1364.16260163,0.00018656,2]
[359062935,1745686233380,-1364.16260163,0.00018656,2]
[359062936,1745686233392,-1364.16260163,0.00018656,2]
[359062937,1745686233403,-1364.16260163,0.00018656,2]
[359062938,1745686233414,-1364.16260163,0.00018656,2]
[359062939,1745686233425,-1364.16260163,0.00018656,2]
[359062940,1745686233436,-1364.16260154,0.00018656,2]
[359062941,1745686233447,-151.84851982,0.00018657,2]
[359062942,1745686233460,-500.0,0.00018658,2]
[359062943,1745686233472,-500.0,0.00018673,2]
[359062944,1745686233486,-556.61160428,0.00018673,2]
[359062945,1745686233500,-284.80703051,0.00018673,2]
[359062946,1745686233512,-500.0,0.00018673,2]
[359062947,1745686233524,-500.0,0.00018673,2]
[359062948,1745686233535,-500.0,0.00018673,2]
[359062949,1745686233548,-500.0,0.00018673,2]
[359062950,1745686233560,-500.0,0.00018673,2]
[359062951,1745686233571,-500.0,0.00018673,2]
[359062952,1745686233583,-500.0,0.00018673,2]
[359062953,1745686233596,-500.0,0.00018673,2]
[359062954,1745686233608,-500.0,0.00018673,2]
[359062955,1745686233619,-500.0,0.00018673,2]
[359062956,1745686233632,-500.0,0.00018673,2]
[359062957,1745686233643,-500.0,0.00018673,2]
[359062958,1745686233655,-400.0,0.00018957,2]
[359062959,1745686233667,-507.68983846,0.00018973,2]
[359062960,1745686233679,-300.0,0.00019178,2]
[359062961,1745686233691,-446.67,0.00019231,2]
[359062962,1745686233703,-1196.37905742,0.000199,2]
[359062963,1745686233727,-267.17925965,0.00020006,2]
[359062964,1745686233746,-179.76630381,0.0002016,2]
[359062965,1745686233763,-165.01155585,0.00020251,5]
[359062966,1745686233777,-420.0,0.00020341,2]
[359062967,1745686233791,-1196.37905742,0.0002059,2]
[359062968,1745686233804,-600.0,0.00020822,2]
[359062969,1745686233817,-165.01155585,0.00020877,5]
[359062970,1745686233832,-1824.92376183,0.000209,2]
[359062971,1745686233845,-1700.0,0.00020972,2]
[359062972,1745686233859,-500.0,0.00020973,2]
[359062973,1745686233872,-157.45,0.00021,2]
[359062974,1745686233885,-160.0,0.00021002,3]
[359062975,1745686233896,-706.0,0.00021115,2]
[359062976,1745686233907,-1196.37905742,0.00021279,3]
[359062977,1745686233918,-267.17925965,0.00021454,2]
[359062978,1745686234167,-390.9428858,0.00021796,2]
[359062979,1745686234177,-400.0,0.00021796,2]
[359062980,1745686234187,-400.0,0.00021796,2]
[359062981,1745686234197,-151.0,0.000219,2]
[359062982,1745686234207,-151.26929453,0.000219,4]
[359062983,1745686234217,-160.0,0.00021917,2]
[359062984,1745686234227,-151.0,0.00021918,2]
[359062985,1745686234242,-151.33355125,0.00021956,2]
[359062986,1745686234252,-1196.37905742,0.00021969,3]
[359062987,1745686234262,-151.0,0.00022055,2]
[359062988,1745686234271,-262.04,0.00022058,3]
[359062989,1745686234282,-1700.0,0.00022068,2]
[359062990,1745686234291,-238.83648979,0.0002207,2]
[359062991,1745686234301,-206.17,0.0002207,2]
[359062992,1745686234311,-587.0,0.00022179,2]
[359062993,1745686234321,-206.91617968,0.00022192,2]
[359062994,1745686234331,-786.16,0.00022293,3]
[359062995,1745686234341,-465.46,0.00022293,3]
[359062996,1745686234351,-24900.0,0.00022303,2]
[359062997,1745686234361,-900.0,0.00022466,2]
[359062998,1745686234371,-162.248,0.00022466,2]
[359062999,1745686234380,-160.0,0.00022501,4]
[359063000,1745686234390,-1196.37905742,0.00022659,4]
[359063001,1745686234400,-267.17925965,0.00022902,2]
[359063002,1745686234410,-1700.0,0.00023164,2]
[359063003,1745686234420,-634.0,0.000232,2]
[359063004,1745686234431,-160.0,0.00023287,2]
[359063005,1745686234440,-1196.37905742,0.00023348,4]
[359063006,1745686234450,-524.08,0.00023428,3]
[359063007,1745686234460,-800.0,0.00023723,2]
[359063008,1745686234471,-800.0,0.00023729,2]
[359063009,1745686234481,-800.0,0.00023734,2]
[359063010,1745686234494,-800.0,0.00023735,2]
[359063011,1745686234504,-800.0,0.00023748,2]
[359063012,1745686234514,-661.89631532,0.00023759,2]
[359063013,1745686234524,-222.4290127,0.0002376,2]
[359063014,1745686234535,-800.0,0.00023784,2]
[359063015,1745686234545,-800.0,0.00023808,2]
[359063016,1745686234554,-800.0,0.00023816,2]
[359063017,1745686234565,-800.0,0.00023829,2]
[359063018,1745686234576,-800.0,0.00023845,2]
[359063019,1745686234585,-800.0,0.00023848,2]
[359063020,1745686234595,-800.0,0.0002386,2]
[359063021,1745686234604,-800.0,0.00023863,2]
[359063022,1745686234615,-800.0,0.00023873,2]
[359063023,1745686234624,-800.0,0.00023878,2]
[359063024,1745686234634,-800.0,0.00023887,2]
[359063025,1745686234644,-800.0,0.0002389,2]
[359063026,1745686234654,-632.34332348,0.000239,2]
[359063027,1745686234671,-408.62024876,0.000239,2]
[359063063,1745686238061,-1296.3935072,0.000239,2]
[359063065,1745686238072,-167.2064928,0.00023908,2]
[359063067,1745686238084,-325.45942829,0.00023908,2]
[359063069,1745686238095,-7.33407891,0.00023908,2]
[359063071,1745686238105,-390.36530191,0.00023911,2]
[359063073,1745686238114,-800.0,0.00023947,2]
[359063075,1745686238124,-800.0,0.00023948,2]
[359063077,1745686238133,-800.0,0.00023956,2]
[359063079,1745686238143,-800.0,0.00023965,2]
[359063081,1745686238153,-800.0,0.00023967,2]
[359063083,1745686238163,-800.0,0.00023971,2]
[359063086,1745686238172,-800.0,0.00023971,2]
[359063088,1745686238182,-500.0,0.00023973,2]
[359063090,1745686238191,-500.0,0.00023973,2]
[359063092,1745686238201,-500.0,0.00023973,2]
[359063094,1745686238210,-500.0,0.00023973,2]
[359063096,1745686238220,-503.58110984,0.00023973,2]
[359063098,1745686238229,-800.0,0.0002398,2]
[359063100,1745686238239,-800.0,0.00023986,2]
[359063102,1745686238248,-40650.09658154,0.00024,2]
[359063104,1745686238258,-160.0,0.00024,14]
[359063106,1745686238268,-2500.0,0.00024,2]
[359063108,1745686238278,-2500.0,0.00024,2]
[359063110,1745686238288,-5000.0,0.00024,2]
[359063112,1745686238298,-1675.95699902,0.00024,2]
[359063114,1745686238308,-160.0,0.00024,14]
[359063116,1745686238319,-150.0,0.00024,5]
[359063118,1745686238329,-151.0,0.00024,2]
[359063120,1745686238341,-150.0,0.00024,2]
[359063122,1745686238351,-1586.9499,0.00024,2]
[359063124,1745686238362,-160.0,0.00024001,5]
[359063126,1745686238372,-1196.37905742,0.00024038,5]
[359063128,1745686238381,-500.0,0.00024109,2]
[359063130,1745686238392,-1273.78,0.00024109,2]
[359063132,1745686238402,-1273.78,0.00024109,2]
[359063134,1745686238412,-1273.78,0.00024109,2]
[359063136,1745686238422,-1273.78,0.00024109,2]
[359063139,1745686238432,-1273.78,0.00024109,2]
[359063141,1745686238442,-1273.78,0.00024109,2]
[359063142,1745686238451,-1273.78,0.00024109,2]
[359063144,1745686238462,-1273.78,0.00024109,2]
[359063146,1745686238473,-1273.78,0.00024109,2]
[359063149,1745686238483,-1200.0,0.0002411,2]
[359063150,1745686238498,-151.0,0.00024137,2]
[359063153,1745686238508,-613.49608928,0.00024152,2]
[359063155,1745686238517,-1000.0,0.00024152,2]
[359063157,1745686238527,-1000.0,0.00024152,2]
[359063159,1745686238540,-1000.0,0.00024152,2]
[359063160,1745686238549,-1000.0,0.00024152,2]
[359063162,1745686238559,-1000.0,0.00024152,2]
[359063164,1745686238570,-1000.0,0.00024152,2]
[359063166,1745686238580,-1000.0,0.00024152,2]
[359063168,1745686238590,-1000.0,0.00024152,2]
[359063171,1745686238600,-1000.0,0.00024152,2]
[359063173,1745686238609,-255.76072221,0.00024152,2]
[359063175,1745686238619,-823.0,0.00024184,2]
[359063177,1745686238629,-1700.0,0.0002426,2]
[359063179,1745686238639,-1273.78,0.00024261,2]
[359063181,1745686238649,-151.0,0.00024274,2]
[359063183,1745686238659,-267.17925965,0.0002435,2]
[359063185,1745686238668,-500.0,0.00024383,2]
[359063187,1745686238678,-151.0,0.00024411,2]
[359063189,1745686238688,-142516.83980409,0.0002445,2]
[359063191,1745686238697,-2940.920766,0.0002445,7]
[359063193,1745686238707,-2940.920766,0.0002445,7]
[359063195,1745686238716,-151.0,0.0002445,7]
[359063197,1745686238726,-151.0,0.0002445,7]
[359063199,1745686238735,-151.0,0.0002445,7]
[359063201,1745686238744,-500.0,0.00024473,2]
[359063203,1745686238754,-500.0,0.00024473,2]
[359063205,1745686238763,-500.0,0.00024473,2]
[359063207,1745686238773,-500.0,0.00024473,2]
[359063209,1745686238783,-500.0,0.00024473,2]
[359063211,1745686238792,-500.0,0.00024473,2]
[359063213,1745686238801,-500.0,0.00024473,2]
[359063215,1745686238811,-500.0,0.00024473,2]
[359063217,1745686238821,-500.0,0.00024473,2]
[359063219,1745686238830,-500.0,0.00024473,2]
[359063221,1745686238840,-500.0,0.000245,2]
[359063223,1745686238849,-500.0,0.000245,2]
[359063225,1745686238858,-500.0,0.000245,2]
[359063227,1745686238868,-500.0,0.000245,2]
[359063229,1745686238877,-500.0,0.000245,2]
[359063231,1745686238887,-1273.78,0.00024535,2]
[359063233,1745686238897,-151.0,0.00024548,2]
[359063235,1745686238907,-1028.63696358,0.0002463,3]
[359063237,1745686238916,-18043.17828964,0.0002463,2]
[359063249,1745686239028,-6697.3902513,0.0002463,2]
[359063391,1745686240460,-576.16426889,0.0002463,2]
[359063640,1745686243184,-1554.22571518,0.0002463,2]
[359063642,1745686243196,-1264.75967926,0.0002463,2]
[359064159,1745687151401,-162.0252337,0.00017336,2]
[359064160,1745687151429,-157.76832995,0.00017484,2]
[359064161,1745687151457,-1742.58376306,0.000175,2]
[359064162,1745687158080,-1266.29623694,0.000175,2]
[359064163,1745687158104,-638.00971357,0.00017584,2]
[359064165,1745687235093,-561.99028643,0.00017584,2]
[359064166,1745687235116,-300.0,0.00017584,2]
[359064167,1745687235139,-300.0,0.00017584,2]
[359064168,1745687235160,-1769.37841516,0.00017585,2]
[359064169,1745687238093,-2292.27526747,0.00017585,2]
[359064170,1745687240202,-2410.56832177,0.00017585,2]
[359064171,1745687246090,-3159.6074088,0.00017585,2]
[359064172,1745687252096,-248.1684654,0.00017585,2]
[359064173,1745687252122,-160.0,0.00017636,2]
[359064174,1745687252144,-1502.74146936,0.00017659,2]
[359064180,1745687373089,-300.0,0.00017576,2]
[359064181,1745687373112,-581.68488523,0.00017577,2]
[359064182,1745687373145,-3226.33391902,0.00017577,2]
[359064197,1745687432851,-300.0,0.00017576,2]
[359064198,1745687432862,-210.9,0.00017576,2]
[359064199,1745687432950,-151.1,0.00017576,2]
[359064200,1745687432959,-61.22332608,0.00017576,2]
[359064201,1745687433210,-238.77667392,0.00017576,2]
[359064202,1745687433221,-616.46553362,0.00017577,2]
[359064203,1745687433233,-10102.57102644,0.00017577,2]
[359064204,1745687433375,-1035.5,0.00017577,2]
[359064205,1745687433388,-9337.44463569,0.00017577,2]
[359064206,1745687433398,-160.0,0.00017577,2]
[359064207,1745687433407,-320.694944,0.00017593,2]
[359064208,1745687433417,-400.0,0.00017653,2]
[359064209,1745687433427,-552.34701094,0.00017659,2]
[359064210,1745687433438,-500.0,0.000178,2]
[359064211,1745687433448,-255.76072221,0.000178,2]
[359064212,1745687433458,-403.25392852,0.000178,2]
[359064213,1745687433468,-500.0,0.000178,2]
[359064214,1745687433478,-500.0,0.000178,2]
[359064215,1745687433489,-259.49,0.00017927,2]
[359064216,1745687433499,-160.0,0.00017942,2]
[359064217,1745687433509,-421.06755229,0.00017942,2]
[359064218,1745687433519,-160.0,0.00017942,2]
[359064219,1745687433529,-160.0,0.00017942,2]
[359064220,1745687433539,-160.0,0.00017942,2]
[359064221,1745687433549,-160.0,0.00017942,2]
[359064222,1745687433559,-152.68707532,0.00018453,2]
[359064223,1745687433569,-245.70896894,0.00018465,2]
[359064224,1745687433580,-197.41948546,0.00018465,2]
[359064225,1745687433590,-312.51390353,0.00018465,2]
[359064226,1745687433600,-500.0,0.00018465,2]
[359064227,1745687433610,-122237.59347138,0.00018466,2]
[359064228,1745687433620,-154.36259486,0.00018553,2]
[359064229,1745687433630,-154.36259486,0.00018554,2]
[359064230,1745687433640,-154.36259486,0.00018555,2]
[359064231,1745687433650,-229.05306563,0.00018555,2]
[359064232,1745687433660,-840.35238838,0.00018631,2]
[359064233,1745687433670,-12582.09293779,0.00018631,2]
[359064234,1745687433680,-160.0,0.00018631,2]
[359064235,1745687433691,-500.0,0.00018634,2]
[359064236,1745687433701,-500.0,0.00018634,2]
[359064237,1745687433711,-500.0,0.00018634,2]
[359064238,1745687433721,-280.43633021,0.00018634,2]
[359064239,1745687433731,-500.0,0.00018634,2]
[359064240,1745687433741,-500.0,0.00018634,2]
[359064241,1745687433752,-330.91806546,0.00018634,2]
[359064242,1745687433764,-755.46225167,0.00018634,2]
[359064243,1745687433774,-755.46225167,0.00018634,2]
[359064244,1745687433785,-755.46225167,0.00018634,2]
[359064245,1745687433796,-755.46225167,0.00018634,2]
[359064246,1745687433806,-755.46225167,0.00018634,2]
[359064247,1745687433816,-755.46225167,0.00018634,2]
[359064248,1745687433826,-755.46225167,0.00018634,2]
[359064249,1745687433837,-755.46225167,0.00018634,2]
[359064250,1745687433847,-755.46225167,0.00018634,2]
[359064251,1745687433857,-755.46225167,0.00018634,2]
[359064252,1745687433867,-755.46225167,0.00018634,2]
[359064253,1745687433878,-755.46225167,0.00018634,2]
[359064254,1745687433891,-755.46225167,0.00018634,2]
[359064255,1745687433900,-755.46225167,0.00018634,2]
[359064256,1745687433910,-336.22,0.00018643,3]
[359064257,1745687433920,-354.9749397,0.0001865,2]
[359064258,1745687433931,-500.0,0.0001865,2]
[359064259,1745687433942,-500.0,0.0001865,2]
[359064260,1745687433953,-400.0,0.0001865,2]
[359064261,1745687433963,-296.08663874,0.0001865,2]
[359064262,1745687433972,-400.0,0.0001865,2]
[359064263,1745687433983,-512.21421511,0.0001865,2]
[359064264,1745687433996,-162.248,0.00018651,2]
[359064265,1745687434006,-534.8,0.00018651,2]
[359064266,1745687434016,-400.0,0.00018651,2]
[359064267,1745687434026,-400.0,0.00018651,2]
[359064268,1745687434038,-3450.14977224,0.00018653,2]
[359064307,1745687438159,-425.68352213,0.00018465,2]
[359064309,1745687438169,-61996.4125678,0.00018653,2]
[359064311,1745687438179,-1028.63696358,0.00018653,3]
[359064313,1745687438188,-130635.27756292,0.00018653,2]
[359064315,1745687438204,-5656.11637355,0.00018653,2]
[359064318,1745687438216,-271040.17568909,0.00018653,2]
[359064320,1745687438227,-336.21982921,0.00018653,2]
[359064325,1745687438267,-8307.72101484,0.00018653,2]
[359064547,1745687440671,-500.0,0.00017576,2]
[359064549,1745687440682,-256.80546802,0.00017576,2]
[359064791,1745687443230,-243.19453198,0.00017576,2]
[359064792,1745687443240,-250.98546802,0.00017576,2]
[359064793,1745687443252,-249.01453198,0.00017576,2]
[359064794,1745687443261,-500.0,0.00017576,2]
[359064795,1745687443271,-500.0,0.00017576,2]
[359064796,1745687443281,-500.0,0.00017576,2]
[359064797,1745687443291,-500.0,0.00017576,2]
[359064798,1745687443301,-500.0,0.00017576,2]
[359064799,1745687443311,-500.0,0.00017576,2]
[359064800,1745687443321,-500.0,0.00017576,2]
[359064801,1745687443331,-500.0,0.00017576,2]
[359064802,1745687443340,-223.45659351,0.00017576,2]
[359064805,1745687443350,-500.0,0.00017576,2]
[359064807,1745687443359,-500.0,0.00017576,2]
[359064810,1745687443369,-500.0,0.00017576,2]
[359064812,1745687443378,-500.0,0.00017576,2]
[359064814,1745687443387,-460.82403151,0.00017576,2]
[359064816,1745687443397,-526.03639011,0.00017576,2]
[359064819,1745687443407,-500.0,0.00017576,2]
[359064822,1745687443416,-500.0,0.00017576,2]
[359064825,1745687443426,-500.0,0.00017576,2]
[359064828,1745687443435,-500.0,0.00017576,2]
[359064831,1745687443445,-500.0,0.00017576,2]
[359064834,1745687443454,-500.0,0.00017576,2]
[359064837,1745687443464,-500.0,0.00017576,2]
[359064840,1745687443473,-500.0,0.00017576,2]
[359064843,1745687443483,-500.0,0.00017576,2]
[359064846,1745687443493,-500.0,0.00017576,2]
[359064849,1745687443504,-500.0,0.00017576,2]
[359064852,1745687443513,-500.0,0.00017576,2]
[359064855,1745687443522,-500.0,0.00017576,2]
[359064858,1745687443532,-500.0,0.00017576,2]
[359064861,1745687443541,-500.0,0.00017576,2]
[359064864,1745687443552,-500.0,0.00017576,2]
[359064867,1745687443562,-500.0,0.00017576,2]
[359064870,1745687443571,-600.00000001,0.00017576,2]
[359064873,1745687443581,-500.0,0.00017576,2]
[359064876,1745687443593,-500.0,0.00017576,2]
[359064878,1745687443602,-500.0,0.00017576,2]
[359064880,1745687443612,-3340.66845289,0.00018653,2]
[359064882,1745687443626,-4647.10810071,0.00018653,2]
[359064884,1745687443638,-5682.24457749,0.00018653,2]
[359064886,1745687443650,-8992.60314965,0.00018653,2]
[359064910,1745687446476,-351.06748987,0.00018653,2]
[359064911,1745687446493,-460.64002672,0.00018653,2]
[359065374,1745688337118,-1089.2053855,0.00016414,2]
[359065375,1745688337143,-250.0,0.00016448,2]
[359065376,1745688337166,-413.9774254,0.00016521,2]
[359065377,1745688337187,-229.8852041,0.00016548,2]
[359065378,1745688341079,-1775.75783093,0.00016548,2]
[359065382,1745688430095,-250.0,0.00016315,2]
[359065383,1745688430117,-309.35328,0.00016513,2]
[359065384,1745688430140,-1305.3217087,0.00016548,2]
[359065385,1745688431118,-3416.43085081,0.00016334,2]
[359065386,1745688451111,-1879.69897964,0.00016334,2]
[359065392,1745688574146,-1179.81807569,0.00016,2]
[359065393,1745688574168,-153.90919318,0.00016133,2]
[359065394,1745688574193,-375.19926275,0.00016233,2]
[359065395,1745688574215,-396.7073935,0.00016233,2]
[359065396,1745688574236,-153.90919317,0.00016233,2]
[359065397,1745688574257,-300.0,0.00016332,2]
[359065398,1745688574278,-500.0,0.00016333,2]
[359065399,1745688574300,-519.11934531,0.00016333,2]
[359065400,1745688574323,-500.0,0.00016333,2]
[359065401,1745688574346,-500.0,0.00016333,2]
[359065402,1745688574374,-500.0,0.00016333,2]
[359065403,1745688574396,-500.0,0.00016333,2]
[359065404,1745688574420,-500.0,0.00016333,2]
[359065405,1745688574443,-500.0,0.00016333,2]
[359065406,1745688574470,-500.0,0.00016333,2]
[359065407,1745688574491,-500.0,0.00016333,2]
[359065408,1745688574511,-500.0,0.00016333,2]
[359065409,1745688574532,-500.0,0.00016333,2]
[359065410,1745688574556,-500.0,0.00016333,2]
[359065411,1745688574583,-500.0,0.00016333,2]
[359065412,1745688574605,-485.45764661,0.00016333,2]
[359065413,1745688574627,-500.0,0.00016333,2]
[359065414,1745688574648,-468.50813946,0.00016333,2]
[359065415,1745688574675,-500.0,0.00016333,2]
[359065416,1745688574696,-500.0,0.00016333,2]
[359065417,1745688574717,-500.0,0.00016333,2]
[359065418,1745688574738,-432.29083188,0.00016333,2]
[359065425,1745688632354,-175.07315335,0.00016233,2]
[359065426,1745688632365,-300.0,0.00016332,2]
[359065427,1745688632375,-300.0,0.00016332,2]
[359065428,1745688632384,-1200.0,0.00016332,2]
[359065429,1745688632394,-300.0,0.00016332,2]